bitfinex/quotes_ETHUSD_20220201
["timestamp","ask_amount","ask_price","bid_price","bid_amount"]
[1643710138226,5.13696728,2745.0,2744.2,1.82161]
[1643710138424,4.99886728,2745.0,2744.3,0.525]
[1643710138726,4.99886728,2745.0,2744.3,1.27854737]
[1643710138923,4.99886728,2745.0,2744.3,2.34661]
[1643710139125,4.99886728,2745.0,2744.4,0.3]
[1643710139524,4.99886728,2745.0,2744.3,1.21085]
[1643710140230,4.99886728,2745.0,2744.3,2.51085]
[1643710140459,4.99886728,2745.0,2744.5,0.91072]
[1643710140662,4.99886728,2745.0,2744.5,1.21072]
[1643710141264,4.99886728,2745.0,2744.1,0.3]
[1643710141467,0.33007213,2744.2,2744.1,0.3]
[1643710141665,0.1821,2744.9,2744.0,0.8]
[1643710141666,0.91103,2744.6,2744.0,0.8]
[1643710141865,0.1821,2744.5,2744.0,0.8]
[1643710142568,0.1821,2744.5,2744.1,0.91095]
[1643710142769,0.36232809,2744.4,2744.1,0.91095]
[1643710144916,0.1821,2744.3,2744.0,0.5]
[1643710145916,0.80575441,2744.1,2743.6,1.82203]
[1643710146114,0.42327176,2743.9,2743.6,1.82203]
[1643710146316,0.42327176,2743.9,2743.8,0.5]
[1643710146515,2.0045,2744.6,2743.8,1.71101]
[1643710146716,0.1822,2744.6,2743.8,1.71101]
[1643710147114,0.86513908,2744.4,2743.8,1.71101]
[1643710147514,0.40436157,2744.2,2743.8,1.21101]
[1643710147715,0.40436157,2744.2,2744.1,0.5]
[1643710147976,0.40436157,2744.2,2744.1,0.8]
[1643710148570,0.91107,2744.4,2744.1,0.8]
[1643710148772,3.5009,2744.7,2744.1,1.71098]
[1643710149574,0.1822,2744.7,2744.1,1.71098]
[1643710149773,0.39672198,2744.4,2744.1,1.71098]
[1643710151274,0.39672198,2744.4,2744.1,0.5]
[1643710152320,0.91644753,2744.2,2744.1,0.5]
[1643710152521,0.39672198,2744.4,2744.1,0.5]
[1643710153620,0.39672198,2744.4,2744.1,0.8]
[1643710154422,0.39672198,2744.4,2744.2,0.5]
[1643710156673,6.7321,2744.3,2744.2,0.5]
[1643710157274,0.1821,2744.3,2744.2,0.5]
[1643710157675,2.6321,2744.3,2744.2,0.5]
[1643710157876,2.6321,2744.3,2743.4,4.41180166]
[1643710158179,3.35141174,2744.3,2743.7,0.91109]
[1643710158375,3.35141174,2744.3,2743.7,1.21109]
[1643710159224,3.35141174,2744.3,2743.8,0.91106]
[1643710159426,0.44516341,2743.9,2743.5,0.5]
[1643710159627,0.91117,2744.1,2743.5,0.5]
[1643710159628,0.91117,2744.1,2743.5,0.8]
[1643710160229,2.45,2744.3,2743.7,0.91108]
[1643710160628,2.45,2744.3,2743.7,1.21108]
[1643710161029,0.43039367,2744.3,2743.7,1.85625029]
[1643710161230,2.9153461,2744.7,2743.8,1.43601]
[1643710161430,1.4266,2744.8,2743.8,1.43601]
[1643710161831,1.4266,2744.8,2743.8,2.43601]
[1643710162033,1.4266,2744.8,2744.7,0.5]
[1643710162229,0.1821,2744.8,2744.7,0.5]
[1643710162631,4.2821,2744.8,2744.7,0.5]
[1643710162832,5.31820299,2744.8,2744.7,0.5]
[1643710163065,5.31820299,2744.8,2743.8,3.34685]
[1643710163271,0.91094,2744.7,2744.0,0.91096]
[1643710163770,0.91094,2744.7,2744.1,0.5]
[1643710163969,0.91094,2744.7,2744.1,1.41094]
[1643710164169,0.91094,2744.7,2744.1,0.91094]
[1643710164371,0.34515484,2744.3,2744.1,0.91094]
[1643710164772,0.91094,2744.7,2744.1,0.91094]
[1643710165171,1.8219087,2744.7,2744.1,0.91094]
[1643710165769,1.8219087,2744.7,2744.1,0.5]
[1643710166175,1.8219087,2744.7,2744.1,0.91095]
[1643710166374,1.8219087,2744.7,2744.2,0.5]
[1643710166574,0.37658447,2744.4,2744.2,0.5]
[1643710166844,0.37658447,2744.4,2744.2,0.8]
[1643710167834,0.37658447,2744.4,2744.2,0.5]
[1643710168433,0.37658447,2744.4,2744.1,0.91095]
[1643710168633,2.0040087,2744.7,2744.1,1.21095]
[1643710168839,1.8219087,2744.7,2744.1,1.21095]
[1643710170492,3.85345772,2744.7,2744.1,1.21095]
[1643710170689,3.85345772,2744.7,2744.1,0.91095]
[1643710171088,0.1821,2744.6,2744.1,0.91095]
[1643710171287,2.0040087,2744.7,2744.1,0.91095]
[1643710171491,0.36581722,2744.6,2744.1,0.91095]
[1643710171889,0.36581722,2744.6,2744.1,1.41095]
[1643710172193,0.91104,2744.4,2744.1,0.5]
[1643710178978,0.1821,2744.3,2744.1,0.5]
[1643710179178,2.06517351,2744.3,2744.1,0.5]
[1643710179384,2.06517351,2744.3,2743.4,1.8222]
[1643710179578,1.8223723,2744.1,2743.4,1.8222]
[1643710179779,0.69288502,2743.8,2743.4,1.8222]
[1643710179980,0.42297965,2743.6,2743.4,1.8222]
[1643710180180,0.69288502,2743.8,2743.4,1.8222]
[1643710180380,0.69288502,2743.8,2743.4,2.1222]
[1643710180583,2.06781475,2744.0,2743.4,2.1222]
[1643710180784,0.91121,2743.8,2743.4,2.1222]
[1643710181386,1.28605234,2743.8,2743.4,2.1222]
[1643710181585,1.28605234,2743.8,2743.4,1.8222]
[1643710183024,1.28605234,2743.8,2743.4,2.3222]
[1643710183424,1.28605234,2743.8,2743.5,0.5]
[1643710183824,1.28605234,2743.8,2743.6,0.5]
[1643710185027,7.29510934,2743.7,2743.6,0.5]
[1643710185228,2.22730934,2743.7,2743.6,0.5]
[1643710185780,2.22730934,2743.7,2743.2,1.82236]
[1643710187584,2.22618528,2743.7,2743.2,1.82236]
[1643710188789,0.1822,2743.7,2743.2,1.82236]
[1643710188992,2.19735294,2743.8,2743.2,1.82236]
[1643710188993,0.40547532,2743.3,2743.2,1.82236]
[1643710189419,0.40547532,2743.3,2743.0,0.91136]
[1643710190019,0.91132,2743.5,2743.0,0.91136]
[1643710190821,1.82259,2743.5,2743.0,0.91136]
[1643710191020,0.36641208,2743.2,2743.0,0.91136]
[1643710191421,0.91127,2743.5,2743.0,0.91136]
[1643710191624,0.91127,2743.5,2743.0,0.91046236]
[1643710191822,0.91127,2743.5,2743.0,1.21046236]
[1643710192122,0.91127,2743.5,2743.0,0.91046236]
[1643710192522,1.31731665,2743.5,2743.0,0.91046236]
[1643710192724,1.31731665,2743.5,2743.0,1.82169236]
[1643710193172,0.91127,2743.5,2743.0,2.12169236]
[1643710193376,1.3962,2743.7,2743.2,1.82219]
[1643710193572,6.3953,2744.5,2743.2,1.82219]
[1643710193573,3.3095,2744.3,2743.2,2.12219]
[1643710193775,4.4636,2744.3,2743.4,0.91109]
[1643710194279,4.4636,2744.3,2743.5,0.525]
[1643710194280,5.37464,2744.3,2743.5,0.525]
[1643710194481,1.3363,2744.6,2743.6,0.91515923]
[1643710194681,1.1541,2744.6,2743.8,0.01280242]
[1643710194881,1.1541,2744.6,2744.5,0.5]
[1643710195080,0.1822,2744.8,2744.5,0.5]
[1643710195277,0.1822,2744.8,2744.3,0.91078]
[1643710195479,0.73220146,2744.9,2744.3,0.91078]
[1643710195880,0.73220146,2744.9,2744.4,1.82152]
[1643710196080,0.1821,2744.8,2743.7,1.0]
[1643710196282,1.4208,2744.8,2743.6,1.30405923]
[1643710196478,1.4208,2744.8,2743.6,0.00405923]
[1643710196732,1.91909996,2744.7,2743.6,0.00405923]
[1643710196929,2.63114111,2744.6,2743.2,0.5]
[1643710197145,0.01260478,2744.4,2743.2,0.5]
[1643710197337,0.1822,2744.3,2743.2,0.5]
[1643710198141,0.76272212,2743.7,2743.3,1.8224]
[1643710198340,0.91122,2743.8,2743.3,1.8224]
[1643710198544,4.8529,2744.2,2743.3,3.33353]
[1643710198739,1.8224,2744.2,2743.3,2.1224]
[1643710199137,1.8224,2744.2,2743.3,3.4224]
[1643710199336,0.91113,2744.1,2743.3,3.4224]
[1643710199535,0.91113,2744.1,2743.3,4.34829051]
[1643710199536,1.8222779,2744.1,2743.3,4.34829051]
[1643710199737,0.91113,2744.1,2743.5,1.2111]
[1643710199940,0.40173844,2743.9,2743.5,1.2111]
[1643710200586,0.40173844,2743.9,2743.5,0.3]
[1643710200786,0.40173844,2743.9,2743.6,1.82211]
[1643710200984,1.31284844,2743.9,2743.6,1.82211]
[1643710201183,1.31284844,2743.9,2743.6,2.12211]
[1643710202284,1.31284844,2743.9,2743.7,0.91105]
[1643710202285,0.40173844,2743.9,2743.7,0.91105]
[1643710202887,0.40173844,2743.9,2743.8,0.5]
[1643710203288,0.40173844,2743.9,2743.8,0.8]
[1643710205725,0.40173844,2743.9,2743.8,0.5]
[1643710208687,1.14323297,2743.9,2743.8,0.5]
[1643710211590,1.14156629,2743.9,2743.8,0.5]
[1643710213240,0.40007176,2743.9,2743.8,0.8]
[1643710214138,0.40007176,2743.9,2743.8,0.5]
[1643710214338,1.18394449,2743.9,2743.8,0.5]
[1643710216584,0.40007176,2743.9,2743.8,0.5]
[1643710217689,1.30972777,2743.9,2743.8,0.5]
[1643710218393,0.40007176,2743.9,2743.8,0.5]
[1643710221036,0.40007176,2743.9,2743.8,1.54657823]
[1643710222036,0.1822,2744.2,2743.8,1.54657823]
[1643710222239,1.82201,2744.6,2743.9,1.04657823]
[1643710222240,0.1822,2744.6,2743.9,1.04657823]
[1643710222438,0.1822,2744.6,2744.0,1.04657823]
[1643710222973,0.88274388,2744.6,2744.0,1.04657823]
[1643710223376,0.42325607,2744.4,2744.3,1.04657823]
[1643710223783,0.91094,2744.6,2744.4,1.04657823]
[1643710223981,0.9108995,2744.8,2744.4,1.04657823]
[1643710224783,0.3902375,2744.7,2744.4,1.04657823]
[1643710225284,0.3902375,2744.7,2744.6,1.04657823]
[1643710225888,1.3011375,2744.7,2744.6,1.04657823]
[1643710226091,0.3902375,2744.7,2744.6,1.04657823]
[1643710226284,4.99886728,2745.0,2744.6,1.34657823]
[1643710226484,4.99771034,2745.0,2744.8,1.04657823]
[1643710227546,5.41364214,2745.0,2744.8,2.86799823]
[1643710228938,4.99771034,2745.0,2744.8,2.86799823]
[1643710229140,4.99771034,2745.0,2744.9,1.57157823]
[1643710229940,4.99771034,2745.0,2744.9,1.04657823]
[1643710230142,5.33422887,2745.0,2744.9,1.04657823]
[1643710230509,5.51632887,2745.0,2744.9,1.04657823]
[1643710230912,6.38817936,2745.0,2744.9,1.04657823]
[1643710231116,6.38817936,2745.0,2744.4,0.5]
[1643710231117,1.8220911,2744.9,2744.4,0.5]
[1643710231319,1.8220911,2744.9,2743.4,4.86574]
[1643710231320,6.55,2744.8,2743.4,1.82215]
[1643710231514,1.18219999,2744.7,2743.4,1.82215]
[1643710231716,1.18219999,2744.7,2743.1,0.00128799]
[1643710231717,0.0120724,2744.3,2743.1,0.00128799]
[1643710231916,0.1822,2744.2,2743.1,0.00128799]
[1643710232114,0.71541102,2743.2,2742.7,0.9113]
[1643710232516,0.44440331,2743.1,2742.7,0.9113]
[1643710232713,0.44440331,2743.1,2743.0,0.5]
[1643710234332,0.44440331,2743.1,2743.0,1.41131]
[1643710236038,3.9204748,2743.8,2743.0,1.41131]
[1643710236239,0.91119,2743.7,2743.0,1.71131]
[1643710236542,0.91119,2743.7,2743.2,1.8224]
[1643710236740,0.91119,2743.7,2743.2,2.1224]
[1643710237141,0.91119,2743.7,2743.3,2.34711]
[1643710237142,0.40109195,2743.6,2743.3,2.34711]
[1643710237337,0.38058447,2743.6,2743.3,2.64711]
[1643710237540,0.38058447,2743.6,2743.3,2.12211]
[1643710237739,0.38058447,2743.6,2743.4,0.91108]
[1643710237985,0.38058447,2743.6,2743.4,1.21108]
[1643710238178,0.38058447,2743.6,2743.4,0.91108]
[1643710241189,0.38058447,2743.6,2743.4,1.21108]
[1643710241387,0.38058447,2743.6,2743.4,0.91108]
[1643710241589,0.38058447,2743.6,2743.2,2.3224]
[1643710241833,0.37940376,2743.6,2743.2,2.6224]
[1643710242029,2.47831979,2743.6,2743.2,0.5]
[1643710242228,2.0051467,2743.5,2743.2,0.5]
[1643710242428,2.24357214,2743.4,2743.2,0.5]
[1643710242628,3.7822,2743.3,2743.2,0.5]
[1643710242828,5.94299702,2743.3,2743.2,0.5]
[1643710243027,6.73737682,2743.3,2743.2,0.5]
[1643710243228,6.73737682,2743.3,2742.6,0.9115]
[1643710243427,0.3257121,2743.0,2742.6,1.2115]
[1643710243630,0.3257121,2743.0,2742.6,1.7115]
[1643710243828,0.3257121,2743.0,2742.7,0.5]
[1643710244433,2.09765121,2742.9,2742.7,0.5]
[1643710244633,0.1822,2742.8,2742.7,0.5]
[1643710244836,5.59248596,2742.8,2742.7,0.5]
[1643710245033,4.36588596,2742.8,2741.7,2.85612569]
[1643710245491,4.5586653,2742.7,2741.7,2.85612569]
[1643710245693,0.86248933,2741.8,2741.7,2.85612569]
[1643710245890,0.42126684,2741.7,2741.5,2.32342]
[1643710246089,0.30055329,2741.7,2741.5,2.32342]
[1643710246487,0.30055329,2741.7,2741.5,1.82342]
[1643710246687,0.30055329,2741.7,2741.6,0.5]
[1643710248698,2.75055329,2741.7,2741.6,0.5]
[1643710248896,0.48275329,2741.7,2741.6,0.5]
[1643710249335,0.30055329,2741.7,2741.1,7.44]
[1643710249741,0.30055329,2741.7,2741.1,8.35187]
[1643710249931,0.30055329,2741.7,2741.1,8.65187]
[1643710250633,2.7358152,2742.3,2741.2,1.1131944]
[1643710250835,0.1822,2742.6,2741.2,5.66110302]
[1643710251033,0.1822,2742.6,2741.3,0.1131944]
[1643710251232,0.1822,2742.6,2741.6,0.91158]
[1643710251434,0.1822,2742.6,2741.7,0.525]
[1643710251633,0.37158424,2742.0,2741.7,0.525]
[1643710252433,0.37158424,2742.0,2741.6,1.3]
[1643710252634,0.37158424,2742.0,2741.5,1.82316]
[1643710253087,0.37158424,2742.0,2741.4,2.34839]
[1643710253287,0.37158424,2742.0,2741.4,2.64839]
[1643710253690,0.37158424,2742.0,2741.4,2.94839]
[1643710253888,0.37158424,2742.0,2741.6,0.91169]
[1643710254094,1.82337,2742.6,2741.6,0.91169]
[1643710254095,1.0938078,2742.5,2741.7,0.525]
[1643710254292,5.2044,2743.2,2741.7,2.73282824]
[1643710254493,5.2044,2743.2,2741.8,0.30381879]
[1643710254689,0.1822,2743.1,2741.9,0.525]
[1643710254893,0.1822,2743.1,2742.1,0.5]
[1643710255089,0.41200742,2742.4,2742.2,0.91151]
[1643710255292,0.41200742,2742.4,2742.1,1.025]
[1643710255488,0.41200742,2742.4,2742.1,1.325]
[1643710256194,0.410898,2742.4,2742.1,1.325]
[1643710256835,0.410898,2742.4,2742.2,0.5]
[1643710259545,0.9115291,2742.7,2742.2,0.5]
[1643710259950,0.9115291,2742.7,2742.3,0.91148]
[1643710260346,0.1822,2742.8,2742.4,0.525]
[1643710260595,0.32254339,2742.8,2742.4,0.525]
[1643710260797,0.1381,2743.4,2742.5,6.55]
[1643710260998,3.6460727,2744.1,2743.3,0.01276966]
[1643710261197,6.4923,2744.7,2743.4,0.525]
[1643710261198,0.1822,2744.5,2743.4,0.525]
[1643710261397,0.18511052,2744.7,2744.4,1.0322728]
[1643710261599,0.00291052,2744.7,2744.4,1.0322728]
[1643710261899,0.1821,2744.9,2744.4,1.0322728]
[1643710261900,0.36008822,2744.6,2744.4,1.0322728]
[1643710262094,0.36008822,2744.6,2744.5,0.525]
[1643710262295,6.6518,2745.4,2744.5,0.525]
[1643710262296,0.1821,2745.3,2744.6,0.27077823]
[1643710262499,0.1821,2745.3,2744.6,0.79577823]
[1643710262694,0.1821,2745.3,2744.6,1.79577823]
[1643710262894,0.1821,2745.3,2744.6,2.09577823]
[1643710263098,0.1821,2745.3,2744.8,0.27077823]
[1643710263295,0.41200714,2745.2,2744.9,3.29577823]
[1643710263496,1.1129715,2745.5,2745.1,2.87077823]
[1643710263699,1.1129715,2745.5,2745.3,0.27077823]
[1643710263894,1.1129715,2745.5,2745.3,0.79577823]
[1643710264332,1.1129715,2745.5,2745.4,3.27077823]
[1643710264530,1.47572374,2745.5,2745.4,0.77077823]
[1643710264729,1.47572374,2745.5,2745.4,0.27077823]
[1643710264931,1.65782374,2745.5,2745.4,0.27077823]
[1643710266934,3.84197813,2745.5,2745.4,0.27077823]
[1643710267640,4.14197813,2745.5,2744.4,1.82151]
[1643710267839,2.18209999,2745.4,2744.2,0.5]
[1643710268098,0.01223354,2744.9,2744.2,0.5]
[1643710268293,0.1821,2744.8,2744.2,0.5]
[1643710268594,0.68682702,2744.6,2744.0,0.13819997]
[1643710268795,0.1821,2744.5,2744.0,0.13819997]
[1643710269099,0.1821,2744.5,2743.7,0.1821]
[1643710269295,0.1821,2744.5,2743.7,1.09313]
[1643710269696,0.1821,2744.5,2743.7,1.39313]
[1643710269900,2.31058365,2744.5,2743.7,1.39313]
[1643710270698,0.43871389,2743.8,2743.7,1.39313]
[1643710271302,0.68682702,2744.6,2743.7,1.39313]
[1643710271510,0.68682702,2744.6,2743.8,0.525]
[1643710271741,0.68682702,2744.6,2743.9,0.1822]
[1643710271923,0.68682702,2744.6,2744.0,0.525]
[1643710272326,2.42702111,2744.5,2744.0,0.525]
[1643710272724,0.35222906,2744.5,2744.0,0.525]
[1643710272927,2.41263453,2744.5,2744.0,0.525]
[1643710273124,0.35222906,2744.5,2744.0,0.525]
[1643710273328,2.81447914,2744.5,2744.0,0.525]
[1643710273530,2.81207066,2744.5,2744.0,0.525]
[1643710273729,2.80761114,2744.5,2744.0,0.525]
[1643710273929,2.81341779,2744.5,2744.0,0.525]
[1643710274128,2.87059758,2744.5,2744.0,0.525]
[1643710274330,0.74147096,2744.5,2744.0,0.525]
[1643710274531,2.84185798,2744.5,2744.0,0.525]
[1643710274731,2.86594732,2744.5,2744.0,0.525]
[1643710274932,2.8102187,2744.5,2744.0,0.525]
[1643710275140,0.74147096,2744.5,2744.0,0.525]
[1643710275486,2.84610204,2744.5,2744.0,0.525]
[1643710275687,2.7922667,2744.5,2744.0,0.525]
[1643710275887,2.78719191,2744.5,2744.0,0.525]
[1643710276086,0.74147096,2744.5,2744.0,0.525]
[1643710276287,0.74147096,2744.5,2744.1,0.1821]
[1643710276487,0.74147096,2744.5,2744.2,0.525]
[1643710277087,0.3892419,2744.5,2744.3,0.1821]
[1643710277289,0.3892419,2744.5,2744.4,8.76731025]
[1643710277488,0.3892419,2744.5,2744.4,14.55072]
[1643710277689,0.3892419,2744.5,2744.4,9.30072]
[1643710277888,0.28740427,2744.5,2744.4,9.80072]
[1643710278289,0.28740427,2744.5,2744.4,9.30072]
[1643710280132,0.62795684,2744.5,2744.4,9.30072]
[1643710280333,0.62795684,2744.5,2744.4,9.48282]
[1643710282139,0.62795684,2744.5,2744.4,8.18282]
[1643710282339,0.62795684,2744.5,2744.4,1.61782]
[1643710282540,0.62795684,2744.5,2744.4,1.43572]
[1643710282738,0.62795684,2744.5,2744.4,0.525]
[1643710283982,0.62795684,2744.5,2744.3,1.8]
[1643710284287,0.62795684,2744.5,2744.3,1.5]
[1643710284288,0.81005684,2744.5,2744.3,1.5]
[1643710284490,0.62795684,2744.5,2744.3,1.5]
[1643710285491,0.62795684,2744.5,2744.3,2.41088]
[1643710285896,0.62795684,2744.5,2744.3,2.71088]
[1643710286092,0.28740427,2744.5,2744.3,2.71088]
[1643710286292,0.28740427,2744.5,2744.4,7.55]
[1643710286293,0.28624771,2744.5,2744.4,7.55]
[1643710286491,0.28624771,2744.5,2744.4,8.2571]
[1643710286937,2.38392014,2745.3,2744.5,6.55]
[1643710287142,1.3616,2745.6,2744.7,0.91062]
[1643710287346,0.83406605,2745.7,2744.8,0.7071]
[1643710287542,6.18232014,2745.9,2744.8,0.7071]
[1643710287543,0.1821,2745.6,2744.8,0.7071]
[1643710287743,0.1821,2745.8,2744.8,0.7071]
[1643710288449,0.38744933,2745.4,2744.8,0.7071]
[1643710288843,0.38744933,2745.4,2745.0,0.91048]
[1643710289044,0.38744933,2745.4,2745.1,0.525]
[1643710289244,0.1821,2745.6,2745.1,0.525]
[1643710289443,0.1821,2745.8,2745.1,0.525]
[1643710290250,0.01223245,2745.2,2744.1,2.91413]
[1643710290491,0.01288477,2744.2,2743.1,3.5]
[1643710290692,0.1822,2744.1,2743.3,1.8222]
[1643710290889,0.01288477,2744.2,2743.4,0.525]
[1643710291104,0.1822,2744.1,2743.8,0.5]
[1643710291295,1.15779905,2744.0,2743.2,1.41109]
[1643710291494,0.1822,2743.9,2743.2,1.41109]
[1643710292297,0.1822,2743.9,2743.2,1.1]
[1643710292495,0.44232435,2743.3,2743.2,1.1]
[1643710292696,2.42209172,2743.9,2743.2,1.1]
[1643710293703,0.34018511,2743.3,2743.2,0.8]
[1643710294102,2.42209172,2743.9,2743.2,0.8]
[1643710294331,2.42209172,2743.9,2743.2,1.1]
[1643710295134,0.1822,2743.9,2743.2,1.1]
[1643710295333,0.39538913,2743.6,2743.2,1.1]
[1643710296935,0.39538913,2743.6,2743.2,0.3]
[1643710297335,0.39538913,2743.6,2743.1,1.51125]
[1643710297735,0.39538913,2743.6,2743.1,1.21125]
[1643710297977,0.39538913,2743.6,2743.1,0.91125]
[1643710299180,0.39538913,2743.6,2743.1,1.21125]
[1643710299592,0.39538913,2743.6,2743.1,0.91125]
[1643710299787,0.39538913,2743.6,2743.1,1.21125]
[1643710300789,0.1822,2743.5,2743.1,1.21125]
[1643710301833,0.39538913,2743.6,2743.1,0.91125]
[1643710302438,2.000416,2743.5,2743.1,0.91125]
[1643710302640,2.182616,2743.5,2743.1,0.91125]
[1643710302839,2.182616,2743.5,2742.8,2.42248]
[1643710303043,0.1822,2743.5,2742.8,2.42248]
[1643710303644,2.09949681,2743.5,2742.8,2.42248]
[1643710303845,0.1822,2743.5,2742.8,2.12248]
[1643710304045,0.36650009,2743.1,2742.8,2.42248]
[1643710304248,1.29753678,2743.1,2742.8,2.42248]
[1643710304644,1.29753678,2743.1,2742.8,1.82248]
[1643710306090,0.36650009,2743.1,2742.8,1.82248]
[1643710307391,1.20831263,2743.1,2742.8,1.82248]
[1643710307993,1.20831263,2743.1,2742.7,0.5]
[1643710308297,2.02079433,2743.0,2742.7,0.5]
[1643710308495,2.02079433,2743.0,2742.2,0.13819997]
[1643710308697,2.02079433,2743.0,2742.1,0.5]
[1643710309236,1.20831263,2743.1,2742.1,0.5]
[1643710309438,0.43395164,2742.5,2742.1,0.5]
[1643710310536,0.43207633,2742.5,2742.1,0.5]
[1643710311738,2.07468143,2743.0,2742.1,0.5]
[1643710312044,0.84181254,2743.1,2742.3,0.91155]
[1643710312241,0.84181254,2743.1,2742.3,1.21155]
[1643710312646,2.01504068,2743.0,2742.3,1.21155]
[1643710313693,0.31777467,2742.4,2742.3,0.91155]
[1643710314193,2.01504068,2743.0,2742.3,0.91155]
[1643710314398,2.05831886,2743.0,2742.3,0.91155]
[1643710314794,2.05831886,2743.0,2742.1,0.5]
[1643710314994,0.1822,2742.9,2742.1,0.5]
[1643710315395,0.1822,2742.9,2742.3,0.91155]
[1643710315593,0.39127203,2742.7,2742.3,0.91155]
[1643710316295,0.39127203,2742.7,2742.1,0.5]
[1643710316742,0.39127203,2742.7,2742.2,1.21154]
[1643710318232,0.39127203,2742.7,2742.2,1.51154]
[1643710318434,0.39127203,2742.7,2742.2,1.21154]
[1643710319233,0.39127203,2742.7,2742.2,1.51154]
[1643710319638,0.39127203,2742.7,2742.2,1.21154]
[1643710320036,0.39127203,2742.7,2742.2,2.51154]
[1643710320236,0.39127203,2742.7,2742.2,1.51154]
[1643710320511,0.39127203,2742.7,2742.3,2.34786]
[1643710320704,0.39127203,2742.7,2742.3,3.34786]
[1643710321708,0.39127203,2742.7,2742.3,2.34786]
[1643710324953,0.39015776,2742.7,2742.3,2.34786]
[1643710325550,0.39015776,2742.7,2742.3,1.82286]
[1643710327986,0.84181254,2743.1,2742.3,1.82286]
[1643710329087,0.32610177,2742.8,2742.3,1.82286]
[1643710329689,0.1822,2743.2,2742.3,1.82286]
[1643710329895,0.1822,2743.8,2742.3,3.34786]
[1643710330104,0.1822,2743.8,2742.5,1.0]
[1643710330291,7.0501,2744.1,2742.5,1.0]
[1643710330292,0.1822,2744.0,2742.8,0.91113]
[1643710330492,0.1822,2744.0,2742.9,0.525]
[1643710330897,0.43088419,2743.8,2743.2,1.250072]
[1643710331095,0.82836169,2744.2,2743.3,0.525]
[1643710331297,0.82836169,2744.2,2743.5,0.91096]
[1643710331494,0.82836169,2744.2,2743.5,1.43596]
[1643710331743,0.82836169,2744.2,2743.6,0.3]
[1643710332545,0.82836169,2744.2,2743.7,1.82198]
[1643710333349,4.0134,2744.6,2743.7,1.82198]
[1643710333549,0.39641843,2744.1,2743.7,2.12198]
[1643710334150,0.39641843,2744.1,2743.6,1.21098]
[1643710334353,2.69362371,2744.0,2743.4,0.91121]
[1643710334550,0.1822,2743.9,2742.7,1.5]
[1643710334750,0.1822,2743.9,2742.7,1.1]
[1643710335050,0.1822,2743.9,2742.7,0.5]
[1643710335352,0.1822,2743.9,2743.1,0.91129]
[1643710335792,0.32225026,2743.2,2743.1,0.91129]
[1643710336493,0.32225026,2743.2,2743.1,1.21129]
[1643710336892,0.1822,2743.9,2743.1,1.21129]
[1643710337294,0.16317304,2743.9,2743.1,1.21129]
[1643710337495,0.67820193,2744.0,2743.1,1.51129]
[1643710337698,0.67820193,2744.0,2743.2,1.82233]
[1643710337898,0.36159504,2743.5,2743.2,2.34733]
[1643710338094,0.36159504,2743.5,2743.2,3.34733]
[1643710338699,0.67820193,2744.0,2743.2,3.34733]
[1643710339348,0.1822,2744.2,2743.2,3.4605244]
[1643710339550,0.1822,2744.5,2743.2,3.4605244]
[1643710339749,0.1822,2744.5,2743.5,0.38790094]
[1643710339750,0.39439954,2744.1,2743.5,0.38790094]
[1643710339951,0.39439954,2744.1,2743.6,0.91098]
[1643710340149,0.39439954,2744.1,2743.6,1.21098]
[1643710340150,0.39322276,2744.1,2743.6,1.21098]
[1643710340349,0.39322276,2744.1,2743.6,2.21098]
[1643710340557,0.39322276,2744.1,2743.6,1.21098]
[1643710340749,0.39322276,2744.1,2743.6,2.21098]
[1643710346590,0.1822,2744.5,2743.6,2.21098]
[1643710346839,0.1822,2744.5,2743.9,0.91099]
[1643710347136,7.5317,2744.7,2743.9,1.51099]
[1643710347332,7.5317,2744.7,2743.9,2.51099]
[1643710347535,7.5317,2744.7,2743.9,1.51099]
[1643710347836,0.39846707,2744.5,2744.0,1.3]
[1643710348039,0.39846707,2744.5,2744.0,0.3]
[1643710348238,0.39846707,2744.5,2744.0,1.0]
[1643710348440,6.3542,2744.7,2744.1,1.82176]
[1643710348641,0.1821,2744.9,2744.1,2.34676]
[1643710348839,4.976,2745.4,2744.1,2.94676]
[1643710349038,0.1821,2745.3,2744.1,2.94676]
[1643710349238,0.1821,2745.3,2744.2,1.0]
[1643710349439,0.33068432,2745.1,2744.6,0.38182215]
[1643710349646,0.33068432,2745.1,2744.3,0.525]
[1643710349841,0.33068432,2745.1,2744.0,0.5]
[1643710349842,2.16216678,2745.0,2744.0,0.5]
[1643710350043,0.01251388,2744.1,2743.2,0.1131944]
[1643710350247,0.1822,2744.0,2742.6,7.3548]
[1643710350490,0.1822,2744.0,2743.9,0.5]
[1643710350690,2.16216678,2744.4,2743.5,0.40711159]
[1643710350891,2.16216678,2744.4,2744.1,0.5]
[1643710350892,0.1822,2744.3,2744.1,0.5]
[1643710351488,0.1822,2744.3,2743.4,2.12217]
[1643710351690,0.1822,2744.3,2743.5,0.5]
[1643710352194,0.1822,2744.3,2743.5,1.0]
[1643710352394,0.1822,2744.3,2743.4,2.12217]
[1643710352395,1.0933846,2744.3,2743.4,2.12217]
[1643710352598,2.14784464,2744.2,2743.0,0.5]
[1643710352798,0.1822,2744.1,2742.7,0.01207632]
[1643710353099,0.1822,2744.1,2743.1,0.5]
[1643710353496,0.9113938,2743.9,2743.1,0.5]
[1643710353699,1.0935938,2743.9,2743.1,0.5]
[1643710353896,0.9113938,2743.9,2743.1,0.5]
[1643710354363,0.9113938,2743.9,2743.1,0.8]
[1643710354562,0.44799331,2743.6,2743.3,0.91123]
[1643710354963,0.44799331,2743.6,2743.2,1.82238]
[1643710355861,0.87450999,2743.5,2743.2,1.82238]
[1643710356267,0.87328152,2743.5,2743.2,1.82238]
[1643710357261,0.44799331,2743.6,2743.2,1.82238]
[1643710357463,1.35935581,2743.6,2743.1,0.8]